bitfinex-derivatives/quotes_BTCF0:USTF0_20250309
["timestamp","ask_amount","ask_price","bid_price","bid_amount"]
[1741554803278,0.3608,82727.0,82726.0,0.12107199]
[1741554803279,0.3588,82727.0,82726.0,0.12107199]
[1741554804180,0.3608,82727.0,82726.0,0.12107199]
[1741554804376,0.3608,82727.0,82726.0,0.00018139]
[1741554804568,0.1209052,82716.0,82715.0,0.00181326]
[1741554804769,0.4817052,82716.0,82715.0,0.00181326]
[1741554804977,0.0604538,82715.0,82698.0,0.0354]
[1741554805175,0.7216,82701.0,82693.0,0.01224391]
[1741554805376,0.3608,82694.0,82691.0,0.00913963]
[1741554805575,0.0717,82693.0,82691.0,0.1209406]
[1741554805772,0.0717,82693.0,82692.0,0.1209403]
[1741554806080,0.0717,82693.0,82682.0,0.09172]
[1741554806280,0.3578,82690.0,82686.0,0.1209485]
[1741554806466,0.3578,82690.0,82683.0,0.0604765]
[1741554806780,0.4227,82690.0,82687.0,0.1209475]
[1741554806981,0.4227,82690.0,82682.0,0.09172]
[1741554806982,0.5436432,82690.0,82682.0,0.09172]
[1741554807178,0.5436432,82690.0,82685.0,0.1209502]
[1741554807381,0.5436432,82690.0,82687.0,0.1209474]
[1741554807574,0.5396432,82690.0,82689.0,0.00681386]
[1741554807985,0.4187,82690.0,82689.0,0.00681386]
[1741554808572,0.5396432,82690.0,82689.0,0.00681386]
[1741554808884,0.4187,82690.0,82689.0,0.00681386]
[1741554809385,0.3834,82690.0,82689.0,0.12775856]
[1741554809774,0.3834,82690.0,82689.0,0.16405856]
[1741554810080,0.3834,82690.0,82689.0,0.00181386]
[1741554810282,0.3894,82690.0,82689.0,0.00181386]
[1741554810478,0.3894,82690.0,82689.0,0.12275856]
[1741554810676,1e-07,82690.0,82689.0,0.55543856]
[1741554810881,0.0338,82700.0,82699.0,0.1209301]
[1741554811081,0.0338,82700.0,82699.0,0.2129301]
[1741554812786,0.0604534,82715.0,82699.0,0.2129301]
[1741554812787,0.3608,82726.0,82699.0,0.4528]
[1741554812991,0.3608,82726.0,82719.0,0.1209008]
[1741554813191,0.3608,82726.0,82719.0,0.2126608]
[1741554813872,0.0347,82725.0,82719.0,0.2471608]
[1741554814686,0.0347,82725.0,82724.0,0.1208935]
[1741554815201,0.0347,82725.0,82721.0,0.0604487]
[1741554815388,0.0347,82725.0,82723.0,0.1208937]
[1741554815688,0.0347,82725.0,82724.0,0.1208935]
[1741554816078,0.0707,82725.0,82724.0,0.1208935]
[1741554817889,0.120898,82721.0,82714.0,0.0604538]
[1741554818087,0.1209111,82712.0,82702.0,0.09184]
[1741554818284,0.1209111,82712.0,82703.0,0.01215607]
[1741554818684,0.1209111,82712.0,82706.0,0.1209187]
[1741554818887,0.1209111,82712.0,82708.0,0.1209165]
[1741554819394,0.1209111,82712.0,82702.0,0.09184]
[1741554819589,0.15,82712.0,82691.0,0.0338]
[1741554819794,0.3608,82697.0,82696.0,0.1209345]
[1741554819994,0.3608,82704.0,82703.0,0.1209242]
[1741554821392,0.00018139,82712.0,82710.0,0.120914]
[1741554821593,0.00018139,82712.0,82711.0,0.2473525]
[1741554821896,0.00018139,82712.0,82711.0,0.6081525]
[1741554823084,0.00018139,82712.0,82711.0,0.6445525]
[1741554832002,0.1209242,82703.0,82702.0,0.00068]
[1741554832298,0.3608,82703.0,82702.0,0.1209257]
[1741554832687,0.3608,82703.0,82700.0,0.0352]
[1741554832885,0.0702,82702.0,82700.0,0.0352]
[1741554833089,0.1911267,82702.0,82700.0,0.0352]
[1741554833294,0.1209271,82701.0,82700.0,0.0352]
[1741554833897,0.0711,82701.0,82697.0,0.0348]
[1741554834300,0.0711,82701.0,82698.0,0.0352]
[1741554834492,0.1920277,82701.0,82698.0,0.0352]
[1741554835001,0.1209287,82700.0,82698.0,0.0352]
[1741554835198,0.1209301,82699.0,82698.0,0.0352]
[1741554835395,0.0706,82699.0,82698.0,0.0352]
[1741554835900,0.1915301,82699.0,82698.0,0.0352]
[1741554836799,0.1209345,82696.0,82693.0,0.09048]
[1741554837596,0.0706,82699.0,82693.0,0.09048]
[1741554837801,0.0655,82697.0,82693.0,0.09048]
[1741554838194,0.0337,82696.0,82693.0,0.09048]
[1741554838603,0.0994,82696.0,82693.0,0.09048]
[1741554838807,0.0994,82696.0,82695.0,0.12111729]
[1741554838997,0.0994,82696.0,82695.0,0.00018139]
[1741554839890,0.0994,82696.0,82695.0,0.12111729]
[1741554840399,0.3608,82702.0,82695.0,0.12111729]
[1741554840400,0.3608,82702.0,82701.0,0.1209271]
[1741554840598,0.3944,82702.0,82701.0,0.1209271]
[1741554841101,0.3944,82702.0,82697.0,0.0933663]
[1741554841304,0.1209345,82696.0,82695.0,0.00018139]
[1741554841499,0.1209345,82696.0,82676.0,0.0018141]
[1741554841500,0.0604663,82698.0,82676.0,0.0018141]
[1741554841700,0.1209622,82677.0,82676.0,0.0018141]
[1741554842299,0.1869622,82677.0,82676.0,0.0018141]
[1741554842696,0.066,82677.0,82676.0,0.0018141]
[1741554844797,0.2192622,82677.0,82676.0,0.0018141]
[1741554845214,0.0983,82677.0,82676.0,0.0018141]
[1741554846000,0.2192622,82677.0,82676.0,0.0018141]
[1741554846311,0.31747144,82677.0,82676.0,0.0018141]
[1741554846505,0.19650924,82677.0,82676.0,0.0018141]
[1741554848501,0.09820924,82677.0,82676.0,0.1227778]
[1741554849504,0.09820924,82677.0,82676.0,0.1560778]
[1741554850103,0.09820924,82677.0,82676.0,0.5168778]
[1741554850403,0.09820924,82677.0,82676.0,0.1560778]
[1741554850599,0.05824183,82677.0,82676.0,0.1560778]
[1741554850797,0.19082928,82679.0,82678.0,0.1209608]
[1741554851009,0.19082928,82679.0,82678.0,0.4817608]
[1741554852610,0.17804392,82682.0,82681.0,0.1209564]
[1741554852802,0.17804392,82682.0,82681.0,0.1551564]
[1741554853119,0.17804392,82682.0,82681.0,0.5159564]
[1741554856214,0.00018139,82685.0,82681.0,0.395]
[1741554856512,0.00018139,82685.0,82684.0,0.120952]
[1741554856815,0.00018139,82685.0,82684.0,0.481752]
[1741554857413,0.00018139,82685.0,82684.0,0.120952]
[1741554858109,0.00018139,82685.0,82684.0,0.481752]
[1741554858507,0.00018139,82685.0,82684.0,0.120952]
[1741554858709,0.00018139,82685.0,82679.0,0.4824793]
[1741554858710,0.36098139,82685.0,82679.0,0.00072]
[1741554859017,0.3608,82682.0,82668.0,0.00018139]
[1741554859242,0.3608,82669.0,82657.0,0.0036]
[1741554859422,0.1025,82668.0,82657.0,0.0036]
[1741554859715,0.4817853,82662.0,82657.0,0.0036]
[1741554859918,0.068,82661.0,82657.0,0.0036]
[1741554861616,0.4817901,82658.0,82657.0,0.0036]
[1741554862723,0.3608,82658.0,82657.0,0.0036]
[1741554863215,0.4817901,82658.0,82657.0,0.0036]
[1741554864922,0.5573901,82658.0,82657.0,0.0036]
[1741554866020,0.4364,82658.0,82631.0,0.09644]
[1741554866227,0.3608,82639.0,82636.0,0.044]
[1741554866420,0.0762,82638.0,82637.0,0.0344]
[1741554866620,0.0762,82638.0,82637.0,0.1554208]
[1741554867226,0.0762,82638.0,82637.0,0.0344]
[1741554867415,0.0762,82638.0,82637.0,0.1554208]
[1741554868629,0.0351,82638.0,82637.0,0.1554208]
[1741554870128,0.0001815,82646.0,82645.0,0.1210091]
[1741554870832,0.0001815,82646.0,82645.0,0.2013091]
[1741554872329,0.0001815,82646.0,82645.0,0.2971091]
[1741554873537,0.2134132,82655.0,82654.0,0.1209959]
[1741554874342,0.40424001,82660.0,82659.0,0.1209886]
[1741554874532,0.403,82660.0,82659.0,0.1209886]
[1741554875134,0.1209886,82659.0,82655.0,0.0604968]
[1741554875330,0.1209901,82658.0,82655.0,0.120994]
[1741554875529,0.0413,82658.0,82655.0,0.120993]
[1741554875739,0.0426,82657.0,82656.0,0.1209923]
[1741554875936,0.4034,82657.0,82651.0,0.0001815]
[1741554876139,0.4817988,82652.0,82651.0,0.0001815]
[1741554876635,0.3608,82652.0,82651.0,0.1211818]
[1741554877332,0.3608,82652.0,82651.0,0.2037818]
[1741554879740,0.0422,82656.0,82655.0,0.1209944]
[1741554881131,0.0422,82656.0,82651.0,0.0001815]
[1741554881132,0.1209988,82652.0,82651.0,0.0001815]
[1741554884843,0.40424001,82656.0,82655.0,0.1209944]
[1741554885030,0.403,82656.0,82655.0,0.1209944]
[1741554885236,0.4431,82656.0,82655.0,0.1209944]
[1741554885437,0.564093,82656.0,82655.0,0.1209944]
[1741554885637,0.4431,82656.0,82651.0,0.0001815]
[1741554885838,0.1209988,82653.0,82652.0,0.2419909]
[1741554886746,0.1209988,82653.0,82652.0,0.1209951]
[1741554886945,0.1209988,82652.0,82651.0,0.0001815]
[1741554887140,0.1615988,82652.0,82651.0,0.0001815]
[1741554887347,0.1615988,82652.0,82651.0,0.1211818]
[1741554887553,0.1615988,82652.0,82651.0,0.0001815]
[1741554888543,0.5223988,82652.0,82651.0,0.0001815]
[1741554888741,0.5223988,82652.0,82651.0,6.156e-05]
[1741554889150,0.5223988,82652.0,82651.0,1.582e-05]
[1741554891054,0.72748106,82652.0,82651.0,1.582e-05]
[1741554891647,0.78242123,82652.0,82651.0,1.582e-05]
[1741554894547,0.1210047,82648.0,82647.0,0.060503]
[1741554895146,0.2640047,82648.0,82647.0,0.060503]
[1741554895350,0.2640047,82648.0,82638.0,0.1815199]
[1741554895351,0.1815342,82639.0,82638.0,0.1815199]
[1741554895556,0.3608,82640.0,82639.0,0.1210179]
[1741554895747,0.3608,82640.0,82639.0,0.2218179]
[1741554896052,0.5779164,82640.0,82639.0,0.2218179]
[1741554896247,0.4569,82640.0,82639.0,0.2218179]
[1741554897151,0.5779164,82640.0,82639.0,0.2218179]
[1741554898255,0.4104,82640.0,82639.0,0.2218179]
[1741554898554,0.0001815,82647.0,82646.0,0.1210076]
[1741554898751,0.0507815,82647.0,82646.0,0.1210076]
[1741554899150,0.0974815,82647.0,82646.0,0.1210076]
[1741554899349,0.0974815,82647.0,82646.0,0.2157076]
[1741554899350,0.34463354,82647.0,82646.0,0.2157076]
[1741554900049,0.34463354,82647.0,82646.0,0.22806]
[1741554900245,0.12632734,82647.0,82646.0,0.22806]
[1741554900644,0.46935398,82665.0,82664.0,0.1209813]
[1741554900845,0.1209832,82663.0,82661.0,0.1209846]
[1741554901044,0.2169842,82662.0,82661.0,0.1209846]
[1741554901251,0.2169842,82662.0,82659.0,0.1084941]
[1741554901442,0.1209871,82660.0,82659.0,0.1084941]
[1741554901755,0.1704846,82662.0,82661.0,0.1209857]
[1741554902049,0.0495,82662.0,82661.0,0.1209857]
[1741554902249,0.0495,82662.0,82661.0,0.1689857]
[1741554902450,0.0604907,82664.0,82661.0,0.1689857]
[1741554902451,0.3608,82665.0,82664.0,0.1209813]
[1741554902752,0.5422711,82665.0,82664.0,0.1209813]
[1741554903150,0.4212906,82665.0,82664.0,0.1209813]
[1741554903752,0.4817798,82665.0,82664.0,0.1209813]
[1741554903954,0.3608,82665.0,82664.0,0.1209813]
[1741554904873,0.4817798,82665.0,82664.0,0.1209813]
[1741554905543,0.3608,82665.0,82664.0,0.1209813]
[1741554906052,0.4099,82665.0,82664.0,0.1209813]
[1741554908548,0.3608,82665.0,82664.0,0.1209813]
[1741554909149,0.10464896,82666.0,82664.0,0.2147413]
[1741554909453,0.10464896,82666.0,82665.0,0.1209798]
[1741554909647,0.10464896,82666.0,82665.0,0.1698798]
[1741554909840,0.04591376,82666.0,82665.0,0.5306798]
[1741554910946,0.38522504,82667.0,82666.0,0.1209783]
[1741554911256,0.38394504,82667.0,82666.0,0.1698783]
[1741554913250,0.86572194,82667.0,82666.0,0.0489]
[1741554913453,0.87707212,82667.0,82666.0,0.0489]
[1741554913648,0.85199522,82667.0,82666.0,0.1698783]
[1741554913958,0.80539522,82667.0,82666.0,0.1698783]
[1741554914162,0.81674672,82667.0,82666.0,0.1698783]
[1741554914742,0.44459654,82667.0,82666.0,0.1698783]
[1741554915147,0.0001815,82668.0,82667.0,0.1209769]
[1741554915354,0.0001815,82668.0,82667.0,0.1694769]
[1741554916053,0.0001815,82668.0,82667.0,0.2167769]
[1741554921657,0.0001815,82668.0,82639.0,0.00064]
[1741554921861,0.1209857,82661.0,82660.0,0.0495]
[1741554922057,0.4817857,82661.0,82660.0,0.0495]
[1741554922864,0.5772857,82661.0,82660.0,0.1704871]
[1741554923566,0.4563,82661.0,82660.0,0.1704871]
[1741554924458,0.55959946,82661.0,82660.0,0.1704871]
[1741554925250,0.19879946,82661.0,82660.0,0.1704871]
[1741554925860,0.10329946,82661.0,82660.0,0.1704871]
[1741554927956,0.10329946,82661.0,82660.0,0.2618871]
[1741554928158,0.0521,82666.0,82665.0,0.1209798]
[1741554929055,0.0521,82666.0,82665.0,0.2160798]
[1741554930557,0.0001815,82668.0,82667.0,0.1209769]
[1741554930762,0.0001815,82668.0,82667.0,0.4817769]
[1741554931460,0.10329946,82672.0,82671.0,0.120971]
[1741554931660,0.10329946,82672.0,82671.0,0.212051]
[1741554932366,0.10329946,82672.0,82671.0,0.365051]
[1741554932955,0.01852715,82672.0,82671.0,0.365051]
[1741554933157,0.0001815,82680.0,82679.0,0.1209593]
[1741554933357,0.0001815,82680.0,82679.0,0.2117993]
[1741554934167,0.0001815,82680.0,82679.0,0.3096993]
[1741554934558,0.0001815,82680.0,82679.0,0.6704993]
[1741554934763,0.07445409,82682.0,82681.0,0.1209564]
[1741554935468,0.25003742,82684.0,82679.0,0.610019]
[1741554935673,0.25003742,82684.0,82683.0,0.1209535]
[1741554938986,0.28593855,82690.0,82688.0,0.1209462]
[1741554938987,0.25003742,82689.0,82688.0,0.1209462]
[1741554939166,0.30203742,82689.0,82688.0,0.2110662]
[1741554939363,0.30203742,82689.0,82688.0,0.2109862]
[1741554939568,0.35413742,82689.0,82688.0,0.2109862]
[1741554940666,0.35413742,82689.0,82688.0,0.2231303]
[1741554942077,0.1041,82689.0,82688.0,0.2231303]
[1741554943463,0.1041,82689.0,82688.0,0.1330903]
[1741554945467,0.1041,82689.0,82687.0,0.08964]
[1741554945468,0.1041,82689.0,82685.0,0.08948]
[1741554945770,0.1209491,82686.0,82685.0,0.2104305]
[1741554945968,0.1209491,82686.0,82681.0,0.0604777]
[1741554945969,0.1209491,82686.0,82684.0,0.1209516]
[1741554946276,0.1209471,82688.0,82687.0,0.1209466]
[1741554947274,0.88432117,82690.0,82689.0,0.1209447]
[1741554947468,0.88308116,82690.0,82689.0,0.1209447]
[1741554949268,0.7822538,82690.0,82689.0,0.1209447]
[1741554950071,0.1814201,82689.0,82682.0,0.060477]
[1741554950373,0.0604797,82679.0,82673.0,0.08888]
[1741554950570,0.3608,82674.0,82673.0,0.2098481]
[1741554950775,0.3608,82674.0,82673.0,0.2219141]
[1741554950974,0.1209595,82679.0,82678.0,0.1209608]
[1741554951577,0.1209556,82682.0,82681.0,0.1209549]
[1741554951768,0.3608,82683.0,82682.0,0.1209549]
[1741554954167,0.3608,82683.0,82682.0,0.1689549]
[1741554956175,0.3608,82683.0,82682.0,0.2192549]
[1741554959277,0.0499,82689.0,82688.0,0.1209462]
[1741554960371,0.0499,82689.0,82688.0,0.2183462]
[1741554961077,0.0499,82689.0,82688.0,0.0471]
[1741554961078,0.1708447,82689.0,82688.0,0.0471]
[1741554961279,0.1209505,82685.0,82684.0,0.08776]
[1741554961580,0.4817505,82685.0,82684.0,0.08776]
[1741554961884,0.3608,82685.0,82684.0,0.120952]
[1741554963784,0.0499,82689.0,82688.0,0.1209462]
[1741554964182,0.0983,82689.0,82688.0,0.1209462]
[1741554964883,0.0484,82689.0,82688.0,0.1209462]
[1741554965182,0.0001815,82690.0,82689.0,0.1209447]
[1741554965380,0.0001815,82690.0,82689.0,0.2161447]
[1741554969175,0.0001815,82690.0,82689.0,0.5769447]
[1741554969370,0.0001815,82690.0,82689.0,0.2161447]
[1741554970087,0.1209564,82681.0,82680.0,0.00064]
[1741554970285,0.3608,82681.0,82677.0,0.0604811]
[1741554970487,0.1456,82680.0,82679.0,0.1209593]
[1741554970889,0.1456,82680.0,82679.0,0.2147593]
[1741554971690,0.2665579,82680.0,82679.0,0.0938]
[1741554971986,0.2665579,82680.0,82679.0,0.2147593]
[1741554972581,0.1456,82680.0,82679.0,0.2147593]
[1741554973083,0.5064,82680.0,82679.0,0.2147593]
[1741554975984,0.3608,82680.0,82679.0,0.2147593]
[1741554977591,0.0989,82689.0,82679.0,0.0938]
[1741554977791,0.0989,82689.0,82688.0,0.1209462]
[1741554978578,0.0989,82689.0,82688.0,0.1715462]
[1741554978992,0.0989,82689.0,82664.0,0.0604904]
[1741554979193,0.0604839,82674.0,82660.0,0.00900937]
[1741554979384,0.1209696,82672.0,82665.0,0.1209793]
[1741554979578,0.1209696,82672.0,82658.0,0.00923539]
[1741554979894,0.1209769,82667.0,82652.0,0.08684]
[1741554980188,0.1210106,82644.0,82643.0,0.21646617]
[1741554980377,0.4818106,82644.0,82643.0,0.21646617]
[1741554980586,0.3608,82644.0,82643.0,0.21646617]
[1741554980785,0.3608,82644.0,82643.0,0.33747817]
[1741554981185,0.5803106,82644.0,82643.0,0.21646617]
[1741554981383,0.5803106,82644.0,82643.0,0.33747817]
[1741554981585,0.4593,82644.0,82643.0,0.33747817]
[1741554982594,0.0985,82644.0,82643.0,0.33747817]
[1741554982781,0.0985,82644.0,82643.0,0.38517817]
[1741554983697,0.0985,82644.0,82643.0,0.168712]
[1741554983698,0.0479,82644.0,82643.0,0.168712]
[1741554984093,0.0479,82644.0,82643.0,0.0477]
[1741554984294,0.4087,82644.0,82643.0,0.121012]
[1741554984792,0.060506,82643.0,82639.0,0.0501]
[1741554984988,0.0472,82643.0,82642.0,0.1210135]
[1741554985193,0.215512,82643.0,82642.0,0.1210135]
[1741554986099,0.0605072,82642.0,82638.0,0.2089391]
[1741554986401,0.1210179,82639.0,82638.0,0.1210191]
[1741554986595,0.1210223,82636.0,82635.0,0.0001815]
[1741554986801,0.4818223,82636.0,82635.0,0.0001815]
[1741554987989,0.1210589,82612.0,82611.0,0.121055]
[1741554988191,0.3608,82612.0,82611.0,0.1210589]
[1741554988593,0.0952,82617.0,82616.0,0.1210516]
[1741554989188,0.0952,82617.0,82616.0,0.1713516]
[1741554990798,0.0001815,82625.0,82618.0,0.1210486]
[1741554990991,0.0001815,82625.0,82624.0,0.1210398]
[1741554991390,0.0001815,82625.0,82619.0,0.0995]
[1741554991391,0.0001815,82625.0,82619.0,0.1101235]
[1741554991593,0.1210441,82622.0,82621.0,0.1210442]
[1741554991794,0.1015,82624.0,82623.0,0.1210413]
[1741554992190,0.2225398,82624.0,82621.0,0.0605215]
[1741554992389,0.1210428,82622.0,82621.0,0.1815637]
[1741554992598,0.1015,82624.0,82617.0,0.060525]
[1741554992796,0.1815697,82621.0,82620.0,0.1210413]
[1741554993201,0.5423697,82621.0,82620.0,0.1210413]
[1741554993400,0.121053,82615.0,82614.0,0.060527]
[1741554993605,0.1210574,82612.0,82611.0,0.0507]
[1741554993893,0.06053,82611.0,82610.0,0.1210589]
[1741554994094,0.16073,82611.0,82610.0,0.1210589]
[1741554994493,0.1002,82611.0,82610.0,0.1210589]
[1741554995001,0.2212589,82611.0,82610.0,0.1210589]
[1741554995204,0.22531692,82611.0,82610.0,0.1210589]
[1741554995391,0.10425802,82611.0,82610.0,0.1210589]
[1741554996790,0.05415802,82611.0,82610.0,0.1210589]
[1741554997001,0.05415802,82611.0,82609.0,0.0471]
[1741554997303,0.1701604,82610.0,82609.0,0.2666618]
[1741554997497,0.0491,82610.0,82609.0,0.2666618]
[1741554997698,0.05315802,82610.0,82609.0,0.2666618]
[1741554997898,0.00405802,82610.0,82609.0,0.2666618]
[1741554998703,0.05315802,82610.0,82609.0,0.2666618]
[1741554999100,0.0491,82610.0,82609.0,0.2666618]
[1741554999302,0.0491,82610.0,82609.0,0.0499]
[1741554999303,0.1701604,82610.0,82609.0,0.0499]
[1741554999507,0.1210618,82609.0,82608.0,0.1212448]
[1741554999810,0.71786,82609.0,82573.0,0.00064]
[1741555000109,0.1210989,82584.0,82581.0,0.0511]
[1741555000303,0.2180999,82583.0,82582.0,0.0512]
[1741555000502,0.22221777,82583.0,82582.0,0.0512]
[1741555000706,0.10111787,82583.0,82582.0,0.0512]
[1741555001014,0.22221777,82583.0,82582.0,0.0512]
[1741555001309,0.64474671,82583.0,82563.0,0.3608]
[1741555001511,0.0605615,82568.0,82556.0,0.3608]
[1741555001700,0.10201787,82567.0,82557.0,0.1]
[1741555002014,0.060565,82563.0,82557.0,0.1605688]
[1741555002308,0.10201787,82562.0,82557.0,0.1]
[1741555002509,0.10201787,82562.0,82556.0,0.3608]
[1741555002708,0.05361787,82562.0,82561.0,0.1211322]
[1741555002908,0.1211381,82557.0,82556.0,0.3608]
[1741555003106,0.1211357,82559.0,82558.0,0.121134]
[1741555003306,0.048,82561.0,82557.0,0.0489]
[1741555003506,0.3608,82565.0,82557.0,0.0489]
[1741555003507,0.0495,82560.0,82559.0,0.1211351]
[1741555003915,0.1706337,82560.0,82559.0,0.1211351]
[1741555004116,0.1706337,82560.0,82559.0,0.1709351]
[1741555004315,0.0495,82560.0,82559.0,0.1709351]
[1741555005715,0.1706337,82560.0,82559.0,0.0498]
[1741555005917,0.0495,82560.0,82546.0,0.0605764]
[1741555006107,0.0605723,82553.0,82552.0,0.1211454]
[1741555006705,0.0512,82555.0,82554.0,0.1211425]
[1741555007410,0.06204203,82555.0,82554.0,0.14216525]
[1741555007618,0.01084203,82555.0,82554.0,0.14216525]
[1741555008316,0.13198303,82555.0,82554.0,0.0483]
[1741555008520,0.00417001,82555.0,82544.0,0.121157]
[1741555008712,0.10767733,82554.0,82553.0,0.1211439]
[1741555009317,0.11862065,82554.0,82553.0,0.1211439]
[1741555009619,0.11104332,82554.0,82553.0,0.1211439]
[1741555010518,0.06034332,82554.0,82553.0,0.1211439]
[1741555010719,0.01094332,82554.0,82553.0,0.1211439]
[1741555012013,0.01094332,82554.0,82553.0,0.1690439]
[1741555012708,0.00417001,82554.0,82553.0,0.1690439]
[1741555013222,0.00417001,82554.0,82553.0,0.1211439]
[1741555013617,0.00417001,82554.0,82553.0,0.08325888]
[1741555013818,0.00417001,82554.0,82553.0,0.18255888]
[1741555014613,0.36497001,82554.0,82539.0,0.00064]
[1741555014822,0.36497001,82554.0,82539.0,0.1725645]
[1741555014823,0.3608,82540.0,82539.0,0.1725645]
[1741555015023,0.0988,82553.0,82539.0,0.0514]
[1741555015325,0.1211598,82543.0,82540.0,0.0474]
[1741555015520,0.0988,82542.0,82541.0,0.1725616]
[1741555015917,0.2488,82542.0,82506.0,0.21710617]
[1741555016121,0.0605933,82524.0,82506.0,0.33767877]
[1741555016421,0.1212115,82507.0,82506.0,0.21646617]
[1741555016621,0.1212115,82507.0,82496.0,0.3078184]
[1741555016622,0.1212262,82497.0,82496.0,0.3078184]
[1741555016824,0.1212262,82497.0,82496.0,0.15616947]
[1741555016825,0.46534151,82497.0,82496.0,0.15616947]
[1741555017131,0.47726027,82497.0,82487.0,0.0484]
[1741555017422,0.47726027,82497.0,82479.0,0.53672462]
[1741555017423,0.1212409,82487.0,82479.0,0.53672462]
[1741555017627,0.3608,82488.0,82486.0,0.2212423]
[1741555017929,0.3608,82488.0,82487.0,0.1212409]
[1741555018125,0.13199222,82487.0,82486.0,0.05755986]
[1741555018328,0.0606232,82484.0,82470.0,0.4939874]
[1741555018518,0.7216,82471.0,82470.0,0.57349356]
[1741555018829,0.72573512,82471.0,82470.0,0.50522776]
[1741555019034,2e-08,82471.0,82470.0,0.40198]
[1741555019222,0.00018185,82479.0,82477.0,0.1212556]
[1741555019523,0.3608,82504.0,82503.0,0.1212174]
[1741555019825,0.3608,82520.0,82498.0,0.3608]
[1741555020125,0.3608,82520.0,82513.0,0.1212027]
[1741555020730,0.12302092,82514.0,82513.0,0.2806768]
[1741555020923,0.00181972,82514.0,82513.0,0.4987768]
[1741555021123,0.060604,82510.0,82505.0,0.00018185]
[1741555021330,0.1212291,82495.0,82494.0,0.0476]
[1741555021625,0.1212423,82486.0,82485.0,0.0493]
[1741555021830,0.68062,82486.0,82447.0,0.0606494]
[1741555022023,0.1212835,82458.0,82457.0,0.0476]
[1741555023622,0.1212997,82447.0,82446.0,0.0493]
[1741555023816,0.4820997,82447.0,82446.0,0.0493]
[1741555024331,0.121296,82450.0,82449.0,0.2425825]
[1741555024518,0.1212997,82448.0,82447.0,0.1212996]
[1741555024720,0.1212997,82448.0,82447.0,0.1698997]
[1741555025025,0.1212997,82448.0,82447.0,0.1673997]
[1741555026126,0.1212997,82448.0,82447.0,0.0461]
[1741555026431,0.1212997,82448.0,82447.0,0.1673997]
[1741555026626,0.1212997,82448.0,82447.0,0.2142997]
[1741555027023,0.1212997,82448.0,82447.0,0.093]
[1741555027926,0.1212997,82448.0,82427.0,0.10184]
[1741555027927,0.2179,82448.0,82427.0,0.10184]
[1741555028126,0.12131,82441.0,82440.0,0.1213048]
[1741555028326,0.06083285,82446.0,82440.0,0.0495]
[1741555028526,0.1819617,82443.0,82442.0,0.1213033]
[1741555028727,0.0606532,82443.0,82442.0,0.1213033]
[1741555028923,0.1213085,82441.0,82440.0,0.0495]
[1741555029126,0.1213085,82441.0,82440.0,0.3302841]
[1741555029329,0.1213085,82441.0,82440.0,0.4515241]
[1741555029534,0.00018185,82446.0,82440.0,0.0495]
[1741555029738,0.18214285,82446.0,82445.0,0.1213026]
[1741555030039,0.06083435,82446.0,82441.0,0.3413683]
[1741555030235,0.1819539,82445.0,82444.0,0.1684037]
[1741555030737,0.1819539,82445.0,82444.0,0.3278141]
[1741555031125,0.0606513,82445.0,82444.0,0.16834]
[1741555031327,0.00018185,82446.0,82445.0,0.1213026]
[1741555031530,0.2226411,82460.0,82459.0,0.121282]
[1741555031727,0.10136,82460.0,82459.0,0.242522]
[1741555031934,0.3391689,82468.0,82467.0,0.1212703]
[1741555032138,0.3391689,82468.0,82460.0,0.12124]
[1741555032139,0.2179,82468.0,82460.0,0.12124]
[1741555032440,0.3391703,82468.0,82467.0,0.1212703]
[1741555032744,0.2179,82468.0,82467.0,0.2425103]
[1741555032945,0.00018185,82472.0,82471.0,0.1212644]
[1741555033238,0.00182013,82475.0,82474.0,0.12126]
[1741555033435,0.00182013,82475.0,82468.0,0.0606343]
[1741555033436,0.21151781,82480.0,82479.0,0.1212526]
[1741555033941,0.10152,82502.0,82481.0,0.0606246]
[1741555034241,0.3608,82503.0,82482.0,0.047]
[1741555034441,0.00018185,82500.0,82491.0,0.0606175]
[1741555034632,0.00018185,82500.0,82492.0,0.0497]
[1741555034837,0.0606116,82499.0,82492.0,0.0497]
[1741555035139,0.1212321,82493.0,82492.0,0.0497]
[1741555035344,0.0002,82498.0,82492.0,0.0497]
[1741555035642,0.00018185,82500.0,82492.0,0.1103165]
[1741555035830,0.00018185,82500.0,82499.0,0.1212232]
[1741555036236,0.00018185,82500.0,82499.0,0.2806973]
[1741555037630,0.00018185,82500.0,82499.0,0.3310973]
[1741555038135,0.00018185,82500.0,82499.0,0.2098741]
[1741555038335,0.12140365,82500.0,82499.0,0.2098741]
[1741555039442,0.00018185,82500.0,82499.0,0.3310973]
[1741555040643,0.3608,82525.0,82500.0,0.1594741]
[1741555040827,0.10471038,82530.0,82499.0,0.4112]
[1741555040828,0.10212,82528.0,82516.0,0.3608]
[1741555041033,0.1211953,82518.0,82517.0,0.2569741]
[1741555041235,0.1211953,82518.0,82517.0,0.0975]
[1741555041434,0.1211953,82518.0,82517.0,0.2569741]
[1741555042439,0.1211953,82518.0,82517.0,0.3781709]
[1741555042639,0.1211953,82518.0,82517.0,0.2569741]
[1741555043234,0.1211953,82518.0,82517.0,0.3781709]
[1741555043835,0.10471038,82521.0,82517.0,0.2569741]
[1741555044139,0.10471038,82521.0,82520.0,0.1211924]
[1741555044743,0.13961384,82528.0,82520.0,0.2806665]
[1741555044939,0.13961384,82528.0,82525.0,0.121185]
[1741555045139,0.13961384,82528.0,82527.0,0.1211821]
[1741555045337,0.0508,82552.0,82551.0,0.1211469]
[1741555045540,0.2231833,82554.0,82553.0,0.1211439]
[1741555045737,0.10204,82554.0,82553.0,0.1211439]
[1741555045940,0.10204,82554.0,82552.0,0.1594741]
[1741555045941,0.10204,82554.0,82532.0,0.4220273]
[1741555046131,0.0605719,82553.0,82545.0,0.0605775]
[1741555046340,0.00018173,82553.0,82545.0,0.0605778]
[1741555046535,0.00018173,82553.0,82552.0,0.1211454]
[1741555046942,0.12132563,82553.0,82552.0,0.1211454]
[1741555047440,0.00018173,82553.0,82552.0,0.1211454]
[1741555048046,0.12132563,82553.0,82552.0,0.1657454]
[1741555048237,0.00018173,82553.0,82552.0,0.1657454]
[1741555048541,0.00018173,82553.0,82552.0,0.2153454]
[1741555050444,0.18502465,82569.0,82568.0,0.1211219]
[1741555051141,0.18502465,82569.0,82568.0,0.280596]
[1741555051338,0.00181795,82571.0,82570.0,0.121119]
[1741555051563,0.00018173,82577.0,82576.0,0.1211102]
[1741555051857,0.1210988,82584.0,82582.0,0.1211]
[1741555052041,0.04668173,82585.0,82583.0,0.2153993]
[1741555052240,0.00018173,82585.0,82584.0,0.1210985]